[Event "*** Titled Tuesday Blitz"]
[Site "Chess.com"]
[Date "2019.12.03"]
[Round "6"]
[White "FelixJoseYnojosa"]
[Black "piscatorox"]
[Result "0-1"]
[WhiteElo "2604"]
[BlackElo "2279"]
[TimeControl "180+2"]
[EndTime "14:23:30 PST"]
[Termination "piscatorox won on time"]

1. e4 {[%clk 0:03:01.9]} 1... d5 {[%clk 0:02:59.7]} 2. exd5 {[%clk 0:03:02.6]}
2... Nf6 {[%clk 0:03:00.7]} 3. Nf3 {[%clk 0:03:03.8]} 3... Bg4 {[%clk
0:03:00.1]} 4. Be2 {[%clk 0:03:04.1]} 4... Qxd5 {[%clk 0:03:00.2]} 5. h3 {[%clk
0:03:04.9]} 5... Bxf3 {[%clk 0:02:55.6]} 6. Bxf3 {[%clk 0:03:05.8]} 6... Qe5+
{[%clk 0:02:49]} 7. Qe2 {[%clk 0:03:07.2]} 7... Qxe2+ {[%clk 0:02:49.6]} 8. Kxe2
{[%clk 0:03:09.1]} 8... Nc6 {[%clk 0:02:36.3]} 9. Bxc6+ {[%clk 0:03:09.3]} 9...
bxc6 {[%clk 0:02:37.3]} 10. d4 {[%clk 0:03:09.2]} 10... Rb8 {[%clk 0:02:31.3]}
11. b3 {[%clk 0:03:09.4]} 11... e6 {[%clk 0:02:27.9]} 12. c4 {[%clk 0:03:10]}
12... c5 {[%clk 0:02:21.6]} 13. Be3 {[%clk 0:03:09.6]} 13... Ne4 {[%clk
0:01:56.3]} 14. Rd1 {[%clk 0:02:58.3]} 14... Be7 {[%clk 0:01:30.1]} 15. f3
{[%clk 0:02:52.2]} 15... Ng3+ {[%clk 0:01:28.4]} 16. Kf2 {[%clk 0:01:21]} 16...
Nf5 {[%clk 0:01:27.5]} 17. Nc3 {[%clk 0:01:05.3]} 17... Nxe3 {[%clk 0:01:09.6]}
18. Kxe3 {[%clk 0:01:04.3]} 18... Bf6 {[%clk 0:01:10.7]} 19. Ne2 {[%clk
0:00:59.4]} 19... cxd4+ {[%clk 0:01:11.2]} 20. Kd3 {[%clk 0:00:36.1]} 20... c5
{[%clk 0:01:11.3]} 21. Ng3 {[%clk 0:00:37.3]} 21... Be7 {[%clk 0:01:05.9]} 22.
Ne4 {[%clk 0:00:37.7]} 22... f5 {[%clk 0:01:05.3]} 23. Nd2 {[%clk 0:00:38.3]}
23... Kf7 {[%clk 0:00:57.6]} 24. f4 {[%clk 0:00:39.4]} 24... g5 {[%clk
0:00:55.7]} 25. Nf3 {[%clk 0:00:30.6]} 25... gxf4 {[%clk 0:00:50.5]} 26. Ne5+
{[%clk 0:00:31.8]} 26... Kf6 {[%clk 0:00:48]} 27. Nd7+ {[%clk 0:00:32.8]} 27...
Kg5 {[%clk 0:00:41.3]} 28. Nxb8 {[%clk 0:00:34.7]} 28... Rxb8 {[%clk 0:00:41.6]}
29. Re1 {[%clk 0:00:35.3]} 29... Kf6 {[%clk 0:00:41]} 30. Kc2 {[%clk 0:00:19.2]}
30... e5 {[%clk 0:00:40.7]} 31. Rad1 {[%clk 0:00:19.2]} 31... e4 {[%clk
0:00:40.5]} 32. a3 {[%clk 0:00:19.6]} 32... a5 {[%clk 0:00:40.3]} 33. Rb1 {[%clk
0:00:15.8]} 33... Rg8 {[%clk 0:00:39]} 34. Rg1 {[%clk 0:00:14.8]} 34... Rg3
{[%clk 0:00:38.4]} 35. b4 {[%clk 0:00:10.9]} 35... axb4 {[%clk 0:00:36.6]} 36.
axb4 {[%clk 0:00:12.8]} 36... cxb4 {[%clk 0:00:37.7]} 37. Rb3 {[%clk 0:00:13.9]}
37... Rc3+ {[%clk 0:00:35.5]} 38. Rxc3 {[%clk 0:00:14.8]} 38... bxc3 {[%clk
0:00:36.6]} 39. Ra1 {[%clk 0:00:15.9]} 39... Bb4 {[%clk 0:00:35.8]} 40. Kb3
{[%clk 0:00:11.9]} 40... Bf8 {[%clk 0:00:18.6]} 41. Ra6+ {[%clk 0:00:07.7]}
41... Kg5 {[%clk 0:00:18.3]} 42. Re6 {[%clk 0:00:08.4]} 42... Bg7 {[%clk
0:00:16.6]} 43. c5 {[%clk 0:00:08.6]} 43... d3 {[%clk 0:00:17]} 44. Re7 {[%clk
0:00:03.8]} 44... Bf6 {[%clk 0:00:15.1]} 45. c6 {[%clk 0:00:04.9]} 45... c2
{[%clk 0:00:14.7]} 0-1

[Event "*** Titled Tuesday Blitz"]
[Site "Chess.com"]
[Date "2019.12.03"]
[Round "6"]
[White "ShahMatKanal"]
[Black "Kosche007"]
[Result "1-0"]
[WhiteElo "2489"]
[BlackElo "2320"]
[TimeControl "180+2"]
[EndTime "14:23:40 PST"]
[Termination "ShahMatKanal won by resignation"]

1. d4 {[%clk 0:02:51.8]} 1... Nf6 {[%clk 0:03:00.3]} 2. c4 {[%clk 0:02:49.2]}
2... g6 {[%clk 0:03:01.4]} 3. Nc3 {[%clk 0:02:49.7]} 3... Bg7 {[%clk 0:03:02.7]}
4. e4 {[%clk 0:02:50.6]} 4... d6 {[%clk 0:03:03.8]} 5. Be2 {[%clk 0:02:51.3]}
5... O-O {[%clk 0:03:04.5]} 6. Nf3 {[%clk 0:02:52.6]} 6... e5 {[%clk 0:03:05.2]}
7. d5 {[%clk 0:02:54.1]} 7... a5 {[%clk 0:03:05]} 8. O-O {[%clk 0:02:55.2]} 8...
Na6 {[%clk 0:03:05.3]} 9. Qc2 {[%clk 0:02:56.4]} 9... Bd7 {[%clk 0:03:00.9]} 10.
Ne1 {[%clk 0:02:37.6]} 10... Ne8 {[%clk 0:02:56.4]} 11. Be3 {[%clk 0:02:35.7]}
11... f5 {[%clk 0:02:56.9]} 12. exf5 {[%clk 0:02:31.5]} 12... Bxf5 {[%clk
0:02:39.2]} 13. Qd2 {[%clk 0:02:23.7]} 13... Nf6 {[%clk 0:02:37]} 14. Bd3 {[%clk
0:02:08]} 14... Qd7 {[%clk 0:02:24.1]} 15. f3 {[%clk 0:02:00.6]} 15... b6 {[%clk
0:02:22]} 16. g3 {[%clk 0:01:34]} 16... Nc5 {[%clk 0:02:20.4]} 17. Bc2 {[%clk
0:01:27.3]} 17... Bh3 {[%clk 0:02:06.6]} 18. Ng2 {[%clk 0:01:26]} 18... a4
{[%clk 0:01:58.8]} 19. Rae1 {[%clk 0:01:22.8]} 19... Kh8 {[%clk 0:01:53.1]} 20.
Rf2 {[%clk 0:01:22.9]} 20... a3 {[%clk 0:01:32.8]} 21. b4 {[%clk 0:01:07.9]}
21... Nb7 {[%clk 0:01:33.6]} 22. Ne4 {[%clk 0:00:52]} 22... Nxe4 {[%clk
0:01:29.6]} 23. Bxe4 {[%clk 0:00:52.9]} 23... Bf5 {[%clk 0:01:22.7]} 24. Qd3
{[%clk 0:00:30.8]} 24... Rf7 {[%clk 0:01:18.5]} 25. Nh4 {[%clk 0:00:30.1]} 25...
Qa4 {[%clk 0:01:07]} 26. Bxf5 {[%clk 0:00:23.3]} 26... gxf5 {[%clk 0:01:05.8]}
27. Nxf5 {[%clk 0:00:24.2]} 27... Qxb4 {[%clk 0:01:02.7]} 28. Rb1 {[%clk
0:00:20.2]} 28... Qa4 {[%clk 0:00:59.3]} 29. Nxg7 {[%clk 0:00:21.1]} 29... Kxg7
{[%clk 0:00:58.3]} 30. f4 {[%clk 0:00:22.3]} 30... Raf8 {[%clk 0:00:52.5]} 31.
fxe5 {[%clk 0:00:20.8]} 31... Rxf2 {[%clk 0:00:52.2]} 32. Bxf2 {[%clk
0:00:22.7]} 32... dxe5 {[%clk 0:00:53]} 33. Qe4 {[%clk 0:00:20.6]} 33... Qe8
{[%clk 0:00:51.4]} 34. Qg4+ {[%clk 0:00:16.6]} 34... Kh8 {[%clk 0:00:44.5]} 35.
Be3 {[%clk 0:00:14.5]} 35... Nd6 {[%clk 0:00:41]} 36. c5 {[%clk 0:00:14.6]}
36... bxc5 {[%clk 0:00:37.3]} 37. Bxc5 {[%clk 0:00:16.5]} 37... Qf7 {[%clk
0:00:38]} 38. Rd1 {[%clk 0:00:11.9]} 38... Qf6 {[%clk 0:00:17.1]} 39. Qe2 {[%clk
0:00:12.5]} 39... Re8 {[%clk 0:00:15.2]} 40. Bxa3 {[%clk 0:00:13.2]} 40... Kg8
{[%clk 0:00:14.3]} 41. Rf1 {[%clk 0:00:13.1]} 41... Qg6 {[%clk 0:00:15.3]} 42.
Bb2 {[%clk 0:00:12.7]} 42... Nf5 {[%clk 0:00:15]} 43. Qd3 {[%clk 0:00:11.8]}
43... Qb6+ {[%clk 0:00:14.6]} 44. Rf2 {[%clk 0:00:11.9]} 44... Rf8 {[%clk
0:00:13.2]} 45. Bxe5 {[%clk 0:00:11.2]} 45... Ne3 {[%clk 0:00:11.6]} 46. Rxf8+
{[%clk 0:00:10.6]} 46... Kxf8 {[%clk 0:00:13.5]} 47. Bd4 {[%clk 0:00:07.1]}
47... Qb1+ {[%clk 0:00:10.5]} 48. Qxb1 {[%clk 0:00:07.9]} 1-0

[Event "*** Titled Tuesday Blitz"]
[Site "Chess.com"]
[Date "2019.12.03"]
[Round "6"]
[White "MathiasWomacka"]
[Black "kleopl"]
[Result "1-0"]
[WhiteElo "2341"]
[BlackElo "2471"]
[TimeControl "180+2"]
[EndTime "14:23:41 PST"]
[Termination "MathiasWomacka won by checkmate"]

1. e4 {[%clk 0:03:01.1]} 1... c6 {[%clk 0:03:00.7]} 2. d4 {[%clk 0:03:01.4]}
2... d5 {[%clk 0:03:02.6]} 3. Nd2 {[%clk 0:03:02.7]} 3... h6 {[%clk 0:03:02.3]}
4. Bd3 {[%clk 0:02:57.5]} 4... dxe4 {[%clk 0:03:00.3]} 5. Nxe4 {[%clk
0:02:59.4]} 5... Qxd4 {[%clk 0:03:00.9]} 6. Nf3 {[%clk 0:03:00.6]} 6... Qb6
{[%clk 0:03:00.1]} 7. Qe2 {[%clk 0:03:01.5]} 7... e6 {[%clk 0:02:58.5]} 8. O-O
{[%clk 0:02:59.7]} 8... Nd7 {[%clk 0:02:58.9]} 9. Bf4 {[%clk 0:02:56.7]} 9...
Ngf6 {[%clk 0:02:56.9]} 10. Nd6+ {[%clk 0:02:56.8]} 10... Bxd6 {[%clk
0:02:57.3]} 11. Bxd6 {[%clk 0:02:58.7]} 11... c5 {[%clk 0:02:56.8]} 12. Bf4
{[%clk 0:02:43.4]} 12... O-O {[%clk 0:02:56.5]} 13. Rad1 {[%clk 0:02:42]} 13...
Qxb2 {[%clk 0:02:54.4]} 14. Ne5 {[%clk 0:02:36.8]} 14... Qxa2 {[%clk 0:02:41]}
15. Qf3 {[%clk 0:02:31.3]} 15... Qa4 {[%clk 0:02:19.2]} 16. c4 {[%clk
0:02:19.6]} 16... Nxe5 {[%clk 0:00:59.8]} 17. Bxe5 {[%clk 0:02:18.6]} 17... Qc6
{[%clk 0:01:00.3]} 18. Qg3 {[%clk 0:01:56.2]} 18... Ne8 {[%clk 0:01:01]} 19.
Rfe1 {[%clk 0:01:57.3]} 19... f5 {[%clk 0:00:28.8]} 20. Re3 {[%clk 0:01:03.1]}
20... b6 {[%clk 0:00:27.9]} 21. Qg6 {[%clk 0:01:00.4]} 21... Nf6 {[%clk
0:00:07.6]} 22. Rg3 {[%clk 0:00:56.6]} 22... Rf7 {[%clk 0:00:08.8]} 23. Bxf6
{[%clk 0:00:55.1]} 23... e5 {[%clk 0:00:09.3]} 24. Bxe5 {[%clk 0:00:51.6]} 24...
Qxg6 {[%clk 0:00:10.3]} 25. Rxg6 {[%clk 0:00:53.5]} 25... Bb7 {[%clk 0:00:11.6]}
26. Be2 {[%clk 0:00:48.2]} 26... Re8 {[%clk 0:00:12.4]} 27. f4 {[%clk 0:00:49]}
27... Rfe7 {[%clk 0:00:11.9]} 28. Kf2 {[%clk 0:00:44.5]} 28... Kh7 {[%clk
0:00:11.8]} 29. Rgd6 {[%clk 0:00:45.4]} 29... Be4 {[%clk 0:00:09.8]} 30. Bf3
{[%clk 0:00:45.5]} 30... Bxf3 {[%clk 0:00:10.7]} 31. Kxf3 {[%clk 0:00:47.4]}
31... Rf7 {[%clk 0:00:11.3]} 32. h4 {[%clk 0:00:44.8]} 32... Ree7 {[%clk
0:00:12.3]} 33. h5 {[%clk 0:00:45.9]} 33... Re8 {[%clk 0:00:12.9]} 34. Rd8
{[%clk 0:00:41.7]} 34... Rxd8 {[%clk 0:00:12.8]} 35. Rxd8 {[%clk 0:00:43.6]}
35... Rb7 {[%clk 0:00:13.7]} 36. Rb8 {[%clk 0:00:38.6]} 36... Rd7 {[%clk
0:00:12.6]} 37. Ke3 {[%clk 0:00:38.3]} 37... Re7 {[%clk 0:00:09.3]} 38. Kd3
{[%clk 0:00:37.3]} 38... Rd7+ {[%clk 0:00:10.2]} 39. Kc3 {[%clk 0:00:38.2]}
39... Rf7 {[%clk 0:00:11.3]} 40. Kb3 {[%clk 0:00:38.6]} 40... Rd7 {[%clk
0:00:09.7]} 41. Ka4 {[%clk 0:00:37.7]} 41... Rd2 {[%clk 0:00:10.8]} 42. Rb7
{[%clk 0:00:37.9]} 42... Rxg2 {[%clk 0:00:11.7]} 43. Kb5 {[%clk 0:00:37]} 43...
Kg8 {[%clk 0:00:10.7]} 44. Rxa7 {[%clk 0:00:37.3]} 44... g5 {[%clk 0:00:11.9]}
45. Kxb6 {[%clk 0:00:16.5]} 45... g4 {[%clk 0:00:12.4]} 46. Kxc5 {[%clk
0:00:17.5]} 46... Re2 {[%clk 0:00:11.6]} 47. Kd5 {[%clk 0:00:16.9]} 47... Kf8
{[%clk 0:00:12.9]} 48. Ke6 {[%clk 0:00:17.9]} 48... g3 {[%clk 0:00:13.8]} 49.
Ra8# {[%clk 0:00:18.5]} 1-0

[Event "*** Titled Tuesday Blitz"]
[Site "Chess.com"]
[Date "2019.12.03"]
[Round "6"]
[White "MasterLeif"]
[Black "Saitama_Hero"]
[Result "1-0"]
[WhiteElo "2454"]
[BlackElo "2319"]
[TimeControl "180+2"]
[EndTime "14:23:41 PST"]
[Termination "MasterLeif won on time"]

1. d4 {[%clk 0:03:01.9]} 1... Nf6 {[%clk 0:02:59.3]} 2. Bf4 {[%clk 0:03:03.3]}
2... c5 {[%clk 0:02:58.7]} 3. e3 {[%clk 0:03:03.8]} 3... cxd4 {[%clk 0:02:58.8]}
4. exd4 {[%clk 0:03:04.4]} 4... Qb6 {[%clk 0:02:59.2]} 5. Nc3 {[%clk 0:03:04.8]}
5... e6 {[%clk 0:02:57.6]} 6. Nf3 {[%clk 0:03:05.6]} 6... Qxb2 {[%clk
0:02:55.8]} 7. Nb5 {[%clk 0:03:04.9]} 7... Nd5 {[%clk 0:02:57.2]} 8. Rb1 {[%clk
0:02:57.6]} 8... Qxa2 {[%clk 0:02:53.4]} 9. Bd6 {[%clk 0:02:47.3]} 9... Qa5+
{[%clk 0:02:40]} 10. Nd2 {[%clk 0:02:48.9]} 10... a6 {[%clk 0:01:56.7]} 11. Ra1
{[%clk 0:02:29.2]} 11... Qd8 {[%clk 0:01:53.3]} 12. Bxf8 {[%clk 0:01:53.3]}
12... Kxf8 {[%clk 0:01:55.2]} 13. c4 {[%clk 0:01:51.3]} 13... Nf6 {[%clk
0:01:50.2]} 14. Nd6 {[%clk 0:01:44.7]} 14... Nc6 {[%clk 0:01:48.1]} 15. Nf3
{[%clk 0:01:31.2]} 15... Ne8 {[%clk 0:01:39.5]} 16. c5 {[%clk 0:01:19.4]} 16...
Nxd6 {[%clk 0:01:35.4]} 17. cxd6 {[%clk 0:01:21.3]} 17... Qb6 {[%clk 0:01:36.5]}
18. Be2 {[%clk 0:01:13]} 18... Qb4+ {[%clk 0:01:36.1]} 19. Qd2 {[%clk
0:01:11.9]} 19... Qxd6 {[%clk 0:01:37.4]} 20. O-O {[%clk 0:01:11.3]} 20... b5
{[%clk 0:01:39]} 21. Bxb5 {[%clk 0:01:11]} 21... Bb7 {[%clk 0:01:40]} 22. Be2
{[%clk 0:01:03.1]} 22... f6 {[%clk 0:01:37.5]} 23. Rfd1 {[%clk 0:00:55.7]} 23...
Nb4 {[%clk 0:01:32.8]} 24. h4 {[%clk 0:00:30.6]} 24... Kf7 {[%clk 0:01:29.4]}
25. h5 {[%clk 0:00:27.2]} 25... Rhc8 {[%clk 0:01:28]} 26. Rac1 {[%clk
0:00:16.6]} 26... a5 {[%clk 0:01:26.2]} 27. h6 {[%clk 0:00:16.3]} 27... g6
{[%clk 0:01:26.1]} 28. Qe3 {[%clk 0:00:17.7]} 28... Nd5 {[%clk 0:01:16.4]} 29.
Qb3 {[%clk 0:00:14.8]} 29... Bc6 {[%clk 0:01:07.9]} 30. Ra1 {[%clk 0:00:09.9]}
30... a4 {[%clk 0:01:03]} 31. Qc2 {[%clk 0:00:10.2]} 31... Nf4 {[%clk
0:01:00.1]} 32. Qd2 {[%clk 0:00:11.4]} 32... Nxe2+ {[%clk 0:00:50.5]} 33. Qxe2
{[%clk 0:00:13.3]} 33... Qd5 {[%clk 0:00:47.1]} 34. Ra3 {[%clk 0:00:11.8]} 34...
Rcb8 {[%clk 0:00:44.8]} 35. Qe3 {[%clk 0:00:10.6]} 35... Rb3 {[%clk 0:00:45.1]}
36. Rd3 {[%clk 0:00:10.9]} 36... Rxa3 {[%clk 0:00:44.6]} 37. Rxa3 {[%clk
0:00:12.8]} 37... Rb8 {[%clk 0:00:44.6]} 38. Qf4 {[%clk 0:00:12.6]} 38... Rb1+
{[%clk 0:00:40.9]} 39. Kh2 {[%clk 0:00:13.8]} 39... Rb3 {[%clk 0:00:29.7]} 40.
Ra1 {[%clk 0:00:06]} 40... Qh5+ {[%clk 0:00:28.4]} 41. Kg1 {[%clk 0:00:06.3]}
41... Qd5 {[%clk 0:00:22.5]} 42. Ne5+ {[%clk 0:00:06.1]} 42... Kg8 {[%clk
0:00:20.8]} 43. Nxc6 {[%clk 0:00:06.1]} 43... Qxc6 {[%clk 0:00:22.7]} 44. d5
{[%clk 0:00:05]} 44... Qxd5 {[%clk 0:00:20.8]} 45. Qxf6 {[%clk 0:00:05.3]} 1-0

[Event "*** Titled Tuesday Blitz"]
[Site "Chess.com"]
[Date "2019.12.03"]
[Round "6"]
[White "pouya21"]
[Black "jefferyx"]
[Result "0-1"]
[WhiteElo "2728"]
[BlackElo "2908"]
[TimeControl "180+2"]
[EndTime "14:23:48 PST"]
[Termination "jefferyx won by resignation"]

1. e4 {[%clk 0:03:01.9]} 1... c6 {[%clk 0:03:00.5]} 2. d4 {[%clk 0:03:02]} 2...
d5 {[%clk 0:03:01.9]} 3. exd5 {[%clk 0:03:03.9]} 3... cxd5 {[%clk 0:03:03.8]} 4.
Bd3 {[%clk 0:03:05.6]} 4... Nc6 {[%clk 0:03:04.4]} 5. c3 {[%clk 0:03:07.2]} 5...
Qc7 {[%clk 0:03:06]} 6. h3 {[%clk 0:03:07.9]} 6... Nf6 {[%clk 0:03:04.1]} 7. Nf3
{[%clk 0:03:08.6]} 7... g6 {[%clk 0:03:05.6]} 8. Qc2 {[%clk 0:03:09.9]} 8... Bg7
{[%clk 0:03:06.4]} 9. O-O {[%clk 0:03:11.3]} 9... O-O {[%clk 0:03:07.2]} 10. Re1
{[%clk 0:03:12.7]} 10... e6 {[%clk 0:02:58.9]} 11. Be3 {[%clk 0:03:08.1]} 11...
a6 {[%clk 0:03:00.1]} 12. Nbd2 {[%clk 0:03:08.9]} 12... b5 {[%clk 0:03:01.2]}
13. a4 {[%clk 0:03:07.7]} 13... b4 {[%clk 0:02:58.6]} 14. Nb3 {[%clk 0:02:46]}
14... bxc3 {[%clk 0:02:51.5]} 15. Qxc3 {[%clk 0:02:47.1]} 15... Bb7 {[%clk
0:02:23.2]} 16. Ne5 {[%clk 0:02:48.1]} 16... Rfc8 {[%clk 0:02:18.6]} 17. Nxc6
{[%clk 0:02:43.9]} 17... Bxc6 {[%clk 0:02:16.6]} 18. Nc5 {[%clk 0:02:39.3]}
18... a5 {[%clk 0:02:14.3]} 19. Rec1 {[%clk 0:02:30.8]} 19... Nd7 {[%clk
0:02:12.5]} 20. Ba6 {[%clk 0:02:26.9]} 20... Re8 {[%clk 0:01:53.4]} 21. Nxd7
{[%clk 0:01:56.8]} 21... Rxa6 {[%clk 0:01:54.2]} 22. Nc5 {[%clk 0:01:58.5]}
22... Ra7 {[%clk 0:01:41.6]} 23. Nd3 {[%clk 0:01:56.7]} 23... Rc8 {[%clk
0:01:42.7]} 24. b4 {[%clk 0:01:55.9]} 24... axb4 {[%clk 0:01:41]} 25. Nxb4
{[%clk 0:01:56.2]} 25... Bd7 {[%clk 0:01:37.7]} 26. Qxc7 {[%clk 0:01:56.6]}
26... Rcxc7 {[%clk 0:01:38.5]} 27. Rxc7 {[%clk 0:01:58]} 27... Rxc7 {[%clk
0:01:40.4]} 28. a5 {[%clk 0:01:59.3]} 28... Bf8 {[%clk 0:01:42.1]} 29. Nd3
{[%clk 0:01:55]} 29... Bb5 {[%clk 0:01:38.8]} 30. Bf4 {[%clk 0:01:50.2]} 30...
Rc6 {[%clk 0:01:20]} 31. Ne5 {[%clk 0:01:44.6]} 31... Ra6 {[%clk 0:01:21]} 32.
Bd2 {[%clk 0:01:43.9]} 32... f6 {[%clk 0:01:09.7]} 33. Ng4 {[%clk 0:01:44.9]}
33... Kf7 {[%clk 0:01:11.4]} 34. Rb1 {[%clk 0:01:46.1]} 34... Bc6 {[%clk
0:01:11.9]} 35. Rb8 {[%clk 0:01:47.2]} 35... h5 {[%clk 0:00:57.2]} 36. Ne3
{[%clk 0:01:38.9]} 36... Bd6 {[%clk 0:00:57.3]} 37. Rh8 {[%clk 0:01:37.9]} 37...
Kg7 {[%clk 0:00:58.6]} 38. Rd8 {[%clk 0:01:38.3]} 38... Bc7 {[%clk 0:00:55.3]}
39. Rc8 {[%clk 0:01:39.7]} 39... Ra7 {[%clk 0:00:56.2]} 40. Bb4 {[%clk
0:01:31.7]} 40... Bd7 {[%clk 0:00:57.2]} 41. Bc5 {[%clk 0:01:33.1]} 41... Bxc8
{[%clk 0:00:56.6]} 42. Bxa7 {[%clk 0:01:34.3]} 42... Bxa5 {[%clk 0:00:58.3]} 43.
Bc5 {[%clk 0:01:35.7]} 43... Ba6 {[%clk 0:00:59.1]} 44. Bd6 {[%clk 0:01:35.5]}
44... Bd3 {[%clk 0:00:59.8]} 45. f4 {[%clk 0:01:35.4]} 45... Bb6 {[%clk
0:00:46.8]} 46. Bc5 {[%clk 0:01:32.5]} 46... Bxc5 {[%clk 0:00:48]} 47. dxc5
{[%clk 0:01:34.4]} 47... Kf7 {[%clk 0:00:49.7]} 48. g4 {[%clk 0:01:34.7]} 48...
hxg4 {[%clk 0:00:36.9]} 49. hxg4 {[%clk 0:01:36.6]} 49... g5 {[%clk 0:00:34.8]}
50. fxg5 {[%clk 0:01:27.2]} 50... fxg5 {[%clk 0:00:36.7]} 51. Kf2 {[%clk
0:01:28.6]} 51... Ke7 {[%clk 0:00:37.6]} 52. Nd1 {[%clk 0:01:26.7]} 52... Kd7
{[%clk 0:00:36]} 53. Ke3 {[%clk 0:01:27]} 53... Bc2 {[%clk 0:00:27.5]} 54. Nc3
{[%clk 0:01:22]} 54... Kc6 {[%clk 0:00:27]} 55. Kd4 {[%clk 0:01:23.4]} 55... Bb3
{[%clk 0:00:27.8]} 56. Ne2 {[%clk 0:01:17.9]} 56... Bd1 {[%clk 0:00:28.8]} 57.
Nc1 {[%clk 0:01:19.4]} 57... Bxg4 {[%clk 0:00:29.9]} 58. Nd3 {[%clk 0:01:21.1]}
58... Bf5 {[%clk 0:00:31.2]} 59. Ne5+ {[%clk 0:01:22.4]} 59... Kc7 {[%clk
0:00:26.8]} 60. Ke3 {[%clk 0:01:22.3]} 60... g4 {[%clk 0:00:23.3]} 61. Kf4
{[%clk 0:01:21.5]} 61... d4 {[%clk 0:00:22.9]} 62. Kg3 {[%clk 0:01:09.7]} 62...
d3 {[%clk 0:00:23.5]} 63. Kf2 {[%clk 0:01:08.7]} 63... g3+ {[%clk 0:00:24.5]}
64. Ke3 {[%clk 0:01:09.5]} 64... g2 {[%clk 0:00:25]} 65. Nf3 {[%clk 0:01:10.8]}
65... Kc6 {[%clk 0:00:26.1]} 66. Kf2 {[%clk 0:01:11.3]} 66... Kxc5 {[%clk
0:00:26.9]} 0-1

[Event "*** Titled Tuesday Blitz"]
[Site "Chess.com"]
[Date "2019.12.03"]
[Round "6"]
[White "Olga_Zhuravleva"]
[Black "GelmanAlexander"]
[Result "1/2-1/2"]
[WhiteElo "2255"]
[BlackElo "2498"]
[TimeControl "180+2"]
[EndTime "14:23:56 PST"]
[Termination "Game drawn by repetition"]

1. e4 {[%clk 0:03:01.9]} 1... c5 {[%clk 0:02:56]} 2. Nf3 {[%clk 0:03:00.7]} 2...
e6 {[%clk 0:02:55.4]} 3. d4 {[%clk 0:02:59.5]} 3... cxd4 {[%clk 0:02:53.5]} 4.
Nxd4 {[%clk 0:03:01.4]} 4... d6 {[%clk 0:02:54.4]} 5. Nc3 {[%clk 0:03:02.4]}
5... a6 {[%clk 0:02:55.2]} 6. Bd3 {[%clk 0:03:02.6]} 6... Nf6 {[%clk 0:02:42.8]}
7. O-O {[%clk 0:03:02.5]} 7... Bd7 {[%clk 0:02:35.6]} 8. Kh1 {[%clk 0:02:58.4]}
8... Nc6 {[%clk 0:02:36.8]} 9. Nb3 {[%clk 0:02:58.6]} 9... b5 {[%clk 0:02:31.2]}
10. a3 {[%clk 0:02:58.9]} 10... Rc8 {[%clk 0:02:24.5]} 11. f4 {[%clk 0:02:59.6]}
11... h5 {[%clk 0:02:25.2]} 12. Qf3 {[%clk 0:02:58.1]} 12... h4 {[%clk
0:02:18.7]} 13. Bd2 {[%clk 0:02:51]} 13... h3 {[%clk 0:02:15]} 14. g4 {[%clk
0:02:49.5]} 14... g6 {[%clk 0:01:44]} 15. Rae1 {[%clk 0:02:46]} 15... Be7 {[%clk
0:01:34.3]} 16. Be3 {[%clk 0:02:24.7]} 16... Qc7 {[%clk 0:01:34.7]} 17. g5
{[%clk 0:02:18]} 17... Nh5 {[%clk 0:01:34.7]} 18. Qf2 {[%clk 0:02:15]} 18... Qb7
{[%clk 0:01:32.6]} 19. Kg1 {[%clk 0:02:14]} 19... b4 {[%clk 0:01:27.6]} 20. axb4
{[%clk 0:02:09.6]} 20... Nxb4 {[%clk 0:01:29.5]} 21. Nd4 {[%clk 0:02:07.3]}
21... O-O {[%clk 0:00:48.3]} 22. f5 {[%clk 0:01:02.1]} 22... exf5 {[%clk
0:00:39]} 23. exf5 {[%clk 0:00:58.8]} 23... Nxd3 {[%clk 0:00:30.8]} 24. cxd3
{[%clk 0:00:59.1]} 24... Rc5 {[%clk 0:00:25.6]} 25. Ne4 {[%clk 0:00:53.4]} 25...
Rxf5 {[%clk 0:00:22.1]} 26. Nxf5 {[%clk 0:00:52.4]} 26... Bxf5 {[%clk 0:00:24]}
27. Qf3 {[%clk 0:00:48.5]} 27... Qxb2 {[%clk 0:00:21.1]} 28. Bc1 {[%clk
0:00:41]} 28... Qd4+ {[%clk 0:00:21.4]} 29. Qe3 {[%clk 0:00:29.2]} 29... Qd5
{[%clk 0:00:20.3]} 30. Bb2 {[%clk 0:00:27.7]} 30... Rb8 {[%clk 0:00:19]} 31. Rb1
{[%clk 0:00:23.4]} 31... Rxb2 {[%clk 0:00:15.9]} 32. Rxb2 {[%clk 0:00:23.9]}
32... Qe5 {[%clk 0:00:15.4]} 33. Rb8+ {[%clk 0:00:23.7]} 33... Kg7 {[%clk
0:00:16.6]} 34. Qf2 {[%clk 0:00:19]} 34... d5 {[%clk 0:00:17.2]} 35. Ng3 {[%clk
0:00:14.9]} 35... Qxb8 {[%clk 0:00:15.8]} 36. Qd4+ {[%clk 0:00:14.3]} 36... Kg8
{[%clk 0:00:13.8]} 37. Nxh5 {[%clk 0:00:14.9]} 37... gxh5 {[%clk 0:00:15.3]} 38.
Rxf5 {[%clk 0:00:15.2]} 38... Qf8 {[%clk 0:00:12.1]} 39. Qxd5 {[%clk 0:00:15.5]}
39... Bc5+ {[%clk 0:00:11.6]} 40. Qxc5 {[%clk 0:00:15.5]} 40... Qe8 {[%clk
0:00:10.4]} 41. Qe5 {[%clk 0:00:16]} 41... Qa4 {[%clk 0:00:11]} 42. Qf6 {[%clk
0:00:15]} 42... Qg4+ {[%clk 0:00:10.6]} 43. Kf2 {[%clk 0:00:14.6]} 43... Qg2+
{[%clk 0:00:12]} 44. Ke3 {[%clk 0:00:15.4]} 44... Qg1+ {[%clk 0:00:13]} 45. Kd2
{[%clk 0:00:15.4]} 45... Qxh2+ {[%clk 0:00:14]} 46. Kc3 {[%clk 0:00:16.6]} 46...
Qc7+ {[%clk 0:00:15.1]} 47. Kd2 {[%clk 0:00:16.4]} 47... h2 {[%clk 0:00:16.6]}
48. g6 {[%clk 0:00:15.8]} 48... h1=Q {[%clk 0:00:11.1]} 49. gxf7+ {[%clk
0:00:16.2]} 49... Kh7 {[%clk 0:00:12.5]} 50. Qh8+ {[%clk 0:00:13.7]} 50... Kxh8
{[%clk 0:00:12.3]} 51. f8=Q+ {[%clk 0:00:15]} 51... Kh7 {[%clk 0:00:14.2]} 52.
Rf7+ {[%clk 0:00:14.9]} 52... Qxf7 {[%clk 0:00:14.5]} 53. Qxf7+ {[%clk
0:00:16.2]} 53... Kh6 {[%clk 0:00:16.4]} 54. Qf6+ {[%clk 0:00:17.4]} 54... Kh7
{[%clk 0:00:17.6]} 55. Qf7+ {[%clk 0:00:18.9]} 55... Kh6 {[%clk 0:00:18.5]} 56.
Qf6+ {[%clk 0:00:20.3]} 56... Kh7 {[%clk 0:00:20]} 57. Qf7+ {[%clk 0:00:21.8]}
1/2-1/2